bitfinex/quotes_ETHUSD_20250625
["timestamp","ask_amount","ask_price","bid_price","bid_amount"]
[1750821997091,0.8087,2460.8,2460.4,4.0642665]
[1750821997495,4.87244832,2460.8,2460.3,4.06447375]
[1750821998600,0.8087,2460.8,2460.2,0.8207]
[1750821998779,0.8087,2460.8,2460.4,4.06434842]
[1750821998969,0.8087,2460.8,2460.5,4.06418801]
[1750822001204,0.8087,2460.8,2460.4,4.95925495]
[1750822001671,0.8087,2460.8,2460.5,4.06420702]
[1750822002305,0.8087,2460.8,2460.4,0.89496352]
[1750822002306,0.8087,2460.8,2460.4,4.95925582]
[1750822002504,4.87245283,2460.8,2460.4,0.89496352]
[1750822002713,0.8087,2460.8,2460.4,4.95934076]
[1750822004473,11.49047035,2460.8,2460.4,0.89496352]
[1750822004777,11.49047035,2460.8,2460.3,4.06447951]
[1750822005400,4.06390001,2460.7,2460.1,4.06483151]
[1750822005600,4.06390001,2460.7,2460.2,4.06459564]
[1750822006876,4.06390001,2460.7,2460.3,4.06452994]
[1750822007072,4.06421459,2460.5,2459.7,0.8175]
[1750822007273,4.82085442,2460.4,2459.9,4.06519238]
[1750822007478,4.0650151,2460.1,2459.5,4.06574093]
[1750822007775,0.7564,2459.9,2459.5,4.06585405]
[1750822007989,0.7564,2459.9,2459.2,5.780295]
[1750822008194,4.82174007,2459.9,2459.4,4.06602161]
[1750822009279,0.7564,2459.9,2459.4,4.06602161]
[1750822010109,4.82163995,2459.9,2459.4,4.06602161]
[1750822010313,4.06538897,2459.8,2459.3,5.70110832]
[1750822011317,4.06538897,2459.8,2459.3,4.06612882]
[1750822012089,0.7564,2459.9,2459.2,5.78035384]
[1750822012286,4.82167308,2459.9,2459.4,4.06591801]
[1750822013382,4.06538681,2459.8,2459.3,4.06611869]
[1750822013922,0.7842,2459.7,2459.2,5.78027692]
[1750822014422,0.7842,2459.7,2459.3,4.06616891]
[1750822015020,4.84973889,2459.7,2459.3,4.06616891]
[1750822015197,1.67569726,2459.7,2458.9,0.7598]
[1750822015398,18.29569726,2459.7,2459.0,4.06663595]
[1750822015613,22.36132575,2459.7,2459.2,4.06635864]
[1750822016303,22.36132575,2459.7,2459.3,0.37832107]
[1750822016627,4.06571531,2459.6,2459.3,0.37832107]
[1750822016833,4.06571531,2459.6,2459.1,0.37825859]
[1750822017123,4.06579159,2459.6,2459.2,0.37826113]
[1750822017323,4.06579159,2459.6,2459.2,0.37826127]
[1750822017626,22.361323,2459.7,2459.2,4.44459767]
[1750822017824,22.361323,2459.7,2459.3,0.37826127]
[1750822017985,4.86478934,2459.5,2459.0,4.06659986]
[1750822018190,0.7989,2459.5,2459.1,4.44475655]
[1750822018390,0.7989,2459.5,2459.0,4.06659986]
[1750822018391,0.7989,2459.5,2459.2,4.4446079]
[1750822018610,0.7989,2459.5,2459.3,0.37825645]
[1750822018921,0.7989,2459.5,2459.1,4.06652254]
[1750822019128,4.86478929,2459.5,2459.1,4.06652254]
[1750822019424,4.8648245,2459.5,2459.0,4.06665019]
[1750822019619,10.7989,2459.7,2459.1,4.8642284]
[1750822019824,6.617,2459.6,2459.3,4.06610797]
[1750822019997,0.7989,2459.7,2459.1,4.8642284]
[1750822019998,0.7989,2459.7,2459.4,4.06596082]
[1750822020203,6.617,2459.7,2459.3,4.06610786]
[1750822020792,6.617,2459.7,2459.2,4.06635143]
[1750822020993,6.617,2459.7,2459.3,4.55247879]
[1750822021220,6.617,2459.7,2459.3,0.48640514]
[1750822021394,6.617,2459.7,2459.3,4.55259733]
[1750822021894,10.68344395,2459.8,2459.3,4.55259733]
[1750822022092,6.617,2459.7,2459.3,4.55259733]
[1750822023328,6.617,2459.7,2459.4,4.06600572]
[1750822023493,14.86419548,2459.9,2459.4,4.92786603]
[1750822023694,6.617,2459.8,2459.4,4.92786603]
[1750822023989,10.68237651,2459.8,2459.4,4.92786603]
[1750822024388,6.617,2459.8,2459.4,4.92786603]
[1750822024794,10.68238201,2459.8,2459.4,0.86186031]
[1750822025103,6.615,2459.7,2459.4,0.86186031]
[1750822026025,10.68062643,2459.7,2459.2,4.06632158]
[1750822026396,6.615,2459.7,2459.3,4.0661708]
[1750822027134,10.68054424,2459.7,2459.3,4.0661708]
[1750822027426,10.68054424,2459.7,2459.2,4.06628462]
[1750822027923,4.06581433,2459.6,2459.1,0.7977]
[1750822028103,0.8208,2459.5,2458.8,1.715]
[1750822028514,4.06620768,2459.3,2458.8,5.78195405]
[1750822029025,4.06610682,2459.4,2458.9,4.06678909]
[1750822029396,4.06620214,2459.3,2458.9,4.06678909]
[1750822029724,4.06620214,2459.3,2458.8,5.78193073]
[1750822029920,4.06612263,2459.4,2458.9,4.06684885]
[1750822030219,4.06612263,2459.4,2459.0,0.37776322]
[1750822030423,4.06612263,2459.4,2459.0,0.37776016]
[1750822030625,0.8208,2459.5,2459.0,0.37776016]
[1750822030807,7.4348,2459.5,2459.2,4.06633831]
[1750822031198,0.8208,2459.5,2459.2,4.06633831]
[1750822031391,16.615,2459.7,2459.3,4.83226028]
[1750822031596,16.616,2459.7,2459.4,4.06597158]
[1750822031796,16.616,2459.7,2459.3,4.83221818]
[1750822032516,10.0,2459.7,2459.5,4.06585954]
[1750822033109,10.0,2459.7,2459.4,4.06595865]
[1750822033338,10.0,2459.7,2459.5,4.44368022]
[1750822033640,10.0,2459.7,2459.4,4.06598024]
[1750822034339,10.0,2459.7,2459.5,4.44368536]
[1750822034536,10.0,2459.7,2459.6,0.37825499]
[1750822034831,10.0,2459.7,2459.4,4.06599851]
[1750822035035,10.0,2459.7,2459.5,0.37827736]
[1750822035340,10.0,2459.7,2459.4,4.06599851]
[1750822036323,7.78,2459.8,2459.5,4.06578879]
[1750822036704,7.78,2459.8,2459.6,4.06569848]
[1750822036907,10.0,2459.9,2459.6,4.06569848]
[1750822037231,7.78,2460.0,2459.6,4.06570174]
[1750822037540,21.84517269,2460.0,2459.5,4.89765898]
[1750822037703,0.7825,2459.9,2459.5,4.06585898]
[1750822038512,0.7825,2459.9,2459.6,4.4447217]
[1750822038739,17.78,2460.0,2459.7,0.37915065]
[1750822038919,24.401,2460.0,2459.8,0.37915065]
[1750822039140,24.401,2460.0,2459.9,0.37915065]
[1750822039460,28.46604065,2460.0,2459.9,0.37915065]
[1750822040543,21.84504065,2460.0,2459.9,0.37907355]
[1750822040751,31.1342785,2460.0,2459.9,0.37907355]
[1750822041249,27.06923785,2460.0,2459.9,0.37906736]
[1750822041921,24.397,2460.0,2459.9,0.37906736]
[1750822042132,24.397,2460.0,2459.9,0.37878284]
[1750822043213,24.398,2460.0,2459.9,0.37878284]
[1750822043942,24.398,2460.0,2459.8,4.0653416]
[1750822044134,24.398,2460.0,2459.9,0.37877854]
[1750822044718,17.78,2460.0,2459.7,4.84375821]
[1750822044926,24.397,2460.0,2459.8,0.37866491]
[1750822045245,24.397,2460.0,2459.9,0.37866491]
[1750822045946,24.397,2460.0,2459.7,4.84375821]
[1750822046137,24.397,2460.0,2459.8,0.37870332]
[1750822046450,17.78,2460.0,2459.7,4.84375821]
[1750822046630,24.394,2460.0,2459.7,4.84375821]
[1750822046834,0.8107,2460.3,2459.9,4.06518213]
[1750822047010,6.614,2460.2,2459.9,4.06518213]
[1750822047215,6.614,2460.2,2460.0,4.06503836]
[1750822049052,6.615,2460.2,2460.0,4.06503836]
[1750822049853,14.82609533,2460.5,2460.0,4.06503836]
[1750822050051,10.0,2460.3,2460.0,4.06503836]
[1750822050250,6.614,2460.2,2459.7,0.7783]
[1750822050431,10.67879443,2460.2,2459.7,0.7783]
[1750822051455,4.06493368,2460.1,2459.7,0.7783]
[1750822051774,11.48126546,2460.2,2459.7,4.06540873]
[1750822051955,14.0358512,2460.2,2459.6,4.89061525]
[1750822052156,4.06494862,2460.1,2459.6,4.89061525]
[1750822052526,14.03588032,2460.2,2459.7,4.06544863]
[1750822054662,4.06499499,2460.1,2459.6,4.8906859]
[1750822055043,14.03587017,2460.2,2459.7,4.06550626]
[1750822055242,11.48128443,2460.2,2459.7,4.06544169]
[1750822055442,4.06488149,2460.1,2459.6,4.06569879]
[1750822055664,11.4812387,2460.2,2459.6,4.06569879]
[1750822055834,2.14812387,2460.1,2459.6,4.06569879]
[1750822056162,6.613,2460.0,2459.6,4.06569879]
[1750822056560,6.613,2460.0,2459.7,4.06551347]
[1750822056964,6.613,2460.0,2459.6,4.06563222]
[1750822057364,6.613,2460.0,2459.7,4.0655195]
[1750822058862,6.613,2460.0,2459.6,4.0656527]
[1750822059068,6.613,2460.0,2459.5,4.0657746]
[1750822059069,10.67808827,2460.0,2459.5,4.0657746]
[1750822060350,4.06523852,2459.9,2459.5,4.0657746]
[1750822061034,0.8117,2459.8,2459.5,4.0657746]
[1750822062669,0.8117,2459.8,2459.5,4.0658421]
[1750822064367,0.8117,2459.8,2459.6,4.06568267]
[1750822064569,6.613,2460.0,2459.6,4.06568267]
[1750822065373,10.67806709,2460.0,2459.5,4.81857672]
[1750822066178,10.67804994,2460.0,2459.5,4.81861718]
[1750822066471,12.40421458,2460.0,2459.5,4.06581718]
[1750822067545,4.06522335,2459.9,2459.4,4.06594217]
[1750822069076,10.67812804,2460.0,2459.5,4.06584756]
[1750822071073,10.67812804,2460.0,2459.6,4.065673]
[1750822071470,6.613,2460.0,2459.6,4.065673]
[1750822073282,10.67805671,2460.0,2459.5,4.06578]
[1750822074880,6.613,2460.0,2459.3,0.7959]
[1750822075073,0.7807,2459.7,2459.3,4.06609873]
[1750822075272,7.3937,2459.7,2459.3,4.06609873]
[1750822076059,7.3937,2459.7,2459.4,4.06602853]
[1750822076557,7.3937,2459.7,2459.0,2.4651]
[1750822076558,7.3937,2459.7,2459.5,4.06585562]
[1750822076954,0.752,2459.9,2459.6,4.06567625]
[1750822078911,6.613,2460.0,2459.7,4.06546488]
[1750822079264,6.613,2460.0,2459.6,0.89103319]
[1750822079265,6.613,2460.0,2459.6,4.956647]
[1750822079497,6.613,2460.0,2459.6,0.89103319]
[1750822079793,6.613,2460.0,2459.6,4.95663166]
[1750822080100,6.613,2460.0,2459.7,4.06541991]
[1750822080393,6.613,2460.0,2459.6,4.95665112]
[1750822080594,4.88729744,2460.1,2459.6,4.95665112]
[1750822080961,4.88729744,2460.1,2459.7,4.06552752]
[1750822080962,0.8224,2460.1,2459.7,4.06552752]
[1750822081964,16.613,2460.2,2459.8,4.06532555]
[1750822082392,20.67772528,2460.2,2459.7,4.06545259]
[1750822083210,19.16420718,2460.2,2459.4,4.84478656]
[1750822083725,4.06501225,2460.1,2459.5,4.06571122]
[1750822083928,0.7698,2459.9,2459.6,4.06564835]
[1750822084404,0.7698,2459.9,2459.5,4.06579644]
[1750822084607,0.7698,2459.9,2459.6,4.44495925]
[1750822084921,0.7636,2460.1,2459.7,4.44480867]
[1750822085089,4.82847636,2460.1,2459.8,0.37934282]
[1750822085284,4.82847636,2460.1,2459.9,0.37942195]
[1750822085515,4.82847636,2460.1,2460.0,0.37942195]
[1750822085816,5.84506262,2460.1,2460.0,0.37942195]
[1750822087014,1.78018626,2460.1,2460.0,0.37942195]
[1750822087192,5.84506167,2460.1,2460.0,0.37942195]
[1750822088023,4.06507847,2460.0,2459.5,4.06578203]
[1750822088205,4.06507847,2460.0,2459.6,0.3794247]
[1750822088411,4.06523162,2459.9,2459.7,0.3794247]
[1750822088613,0.7559,2459.8,2459.4,4.06596452]
[1750822088800,0.7559,2459.8,2459.5,0.37950152]
[1750822089120,0.7559,2459.8,2459.6,0.37950152]
[1750822089428,0.7559,2459.8,2459.7,0.37950152]
[1750822089598,0.7559,2459.8,2459.7,0.37942537]
[1750822089797,0.7559,2459.8,2459.7,0.37944035]
[1750822090305,0.7559,2459.8,2459.7,0.3794456]
[1750822090829,0.7559,2459.8,2459.5,4.06579348]
[1750822091030,0.7559,2459.8,2459.6,0.37944218]
[1750822091217,0.7559,2459.8,2459.7,0.37944218]
[1750822092697,6.613,2459.9,2459.7,0.37944218]
[1750822093018,11.43414237,2459.9,2459.5,4.06585697]
[1750822093193,7.36302272,2459.9,2459.5,4.06585697]
[1750822093396,7.36302272,2459.9,2459.6,4.06569495]
[1750822093617,11.42835409,2459.9,2459.4,4.06593953]
[1750822093818,4.06544026,2459.8,2459.3,0.8109]
[1750822094025,4.06544026,2459.8,2459.1,4.0664427]
[1750822094026,4.82168326,2459.6,2459.1,4.0664427]
[1750822094236,0.7559,2459.3,2458.9,4.06681167]
[1750822094526,0.7559,2459.0,2458.4,4.06753875]
[1750822094696,0.7559,2459.0,2458.3,0.8109]
[1750822094898,0.7559,2459.0,2458.5,4.06743599]
[1750822095245,10.0,2458.9,2458.4,4.06762471]
[1750822095409,20.67888479,2458.9,2458.4,4.06762471]
[1750822096430,4.06711423,2458.8,2458.2,5.77492567]
[1750822096616,0.7818,2458.7,2458.2,5.77492567]
[1750822096827,10.68045305,2458.6,2457.7,2.5212]
[1750822097129,10.68045305,2458.6,2457.9,4.06850096]
[1750822097130,0.7818,2458.3,2457.9,4.06850096]
[1750822097345,7.3948,2458.3,2457.9,4.06850096]
[1750822098330,7.3948,2458.3,2458.0,4.06831025]
[1750822098533,7.3948,2458.3,2458.1,4.06815134]
[1750822099117,7.3948,2458.3,2458.0,4.06826863]
[1750822099625,7.3948,2458.3,2458.1,4.06815133]
[1750822102940,7.3948,2458.3,2458.0,4.06834279]
[1750822103134,7.3948,2458.3,2458.1,4.06803715]
[1750822103341,7.3948,2458.3,2458.1,4.06804482]
[1750822104443,7.3948,2458.3,2458.2,4.06801724]
[1750822104741,6.613,2458.3,2458.2,4.06801724]
[1750822104915,8.5924,2458.5,2458.2,4.06801724]
[1750822105116,6.615,2458.4,2458.3,4.06784912]
[1750822105322,15.2074,2458.5,2458.3,4.06784912]
[1750822106057,15.2074,2458.5,2458.2,4.06799485]
[1750822106416,17.30566826,2458.5,2458.2,4.06799485]
[1750822107416,9.52566826,2458.5,2458.2,4.06799485]
[1750822108339,7.4274,2458.5,2458.2,4.06799485]
[1750822109642,7.4274,2458.5,2457.8,4.06867219]
[1750822109842,7.4274,2458.5,2458.2,4.06789645]
[1750822110238,7.4274,2458.5,2458.3,4.06783821]
[1750822110444,7.4284,2458.5,2458.3,4.06783821]
[1750822110944,7.4284,2458.5,2458.2,4.06792358]
[1750822111247,7.4284,2458.5,2458.3,4.06785038]
[1750822111540,7.4284,2458.5,2458.1,4.06806953]
[1750822111541,0.8096,2458.7,2458.1,0.8144]
[1750822111754,10.0,2458.6,2458.4,4.06760428]
[1750822112417,10.0,2458.6,2458.5,4.06752084]
[1750822113541,16.616,2458.7,2458.6,4.0673554]
[1750822113840,0.17828697,2458.8,2458.7,4.06718997]
[1750822114833,0.17828697,2458.8,2458.6,4.88023659]
[1750822115027,0.17828697,2458.8,2458.6,4.06733659]
[1750822115644,0.17828697,2458.8,2458.5,4.06744682]
[1750822115858,4.84369752,2458.7,2458.2,4.06793478]
[1750822116022,6.616,2458.6,2458.2,4.06793478]
[1750822116723,10.68338164,2458.6,2458.1,4.06809873]
[1750822117651,10.68338164,2458.6,2458.2,4.06800155]
[1750822117952,6.616,2458.6,2458.2,4.06800155]
[1750822118244,12.36171262,2458.6,2458.1,4.0681043]
[1750822119634,0.8067,2458.4,2458.0,4.06829354]
[1750822122569,0.8067,2458.4,2457.9,4.0684875]
[1750822122862,7.4227,2458.4,2458.1,4.06802516]
[1750822123039,7.4227,2458.4,2458.1,4.06810202]
[1750822124399,0.8067,2458.4,2458.1,4.06810202]
[1750822124566,7.4217,2458.4,2458.0,4.06830302]
[1750822124764,7.4217,2458.4,2458.1,4.06806259]
[1750822126462,0.8067,2458.4,2458.1,4.06806259]
[1750822126629,7.4227,2458.4,2458.2,4.06800027]
[1750822127456,7.4227,2458.4,2458.0,4.06827542]
[1750822127457,7.4227,2458.4,2458.1,4.06809487]
[1750822127858,0.8067,2458.4,2458.1,4.06809487]
[1750822128238,0.8067,2458.4,2458.2,4.06793346]
[1750822128770,16.615,2458.5,2458.1,4.06808686]
[1750822129081,16.615,2458.5,2458.2,4.06801041]
[1750822129449,10.0,2458.5,2458.2,4.06801041]
[1750822129745,16.615,2458.5,2458.1,4.06814258]
[1750822129946,4.06769148,2458.4,2458.0,4.06827594]
[1750822130468,4.06769148,2458.4,2457.9,4.06843067]
[1750822130970,0.7929,2458.4,2457.8,4.06861087]
[1750822131274,4.06788352,2458.3,2457.8,4.06861087]
[1750822131452,6.615,2458.2,2457.8,4.06861087]
[1750822133281,10.68302335,2458.2,2457.8,4.06861087]
[1750822133582,10.68310474,2458.2,2457.7,4.06883734]
[1750822133874,4.86111933,2458.1,2457.6,5.48317267]
[1750822134045,0.7929,2458.1,2457.7,4.06882915]
[1750822134246,0.7929,2458.1,2457.6,1.41425401]
[1750822134466,0.7929,2458.1,2457.6,0.7606]
[1750822134875,0.7929,2458.1,2457.7,4.06877393]
[1750822136781,0.7929,2458.1,2457.8,4.06866626]
[1750822137162,0.7929,2458.1,2457.8,4.0686793]
[1750822138488,0.7929,2458.1,2457.9,4.06849859]
[1750822139267,0.7929,2458.1,2457.8,4.06858518]
[1750822139749,0.7929,2458.1,2457.7,4.722394]
[1750822140084,0.7929,2458.1,2457.8,4.06861441]
[1750822140281,0.7929,2458.1,2457.9,4.06848121]
[1750822140465,0.7929,2458.1,2457.8,4.06859738]
[1750822140661,0.7929,2458.1,2457.7,4.0687988]
[1750822140662,1.94047656,2458.1,2457.2,0.8154]
[1750822140868,4.84983445,2457.9,2457.4,4.06932341]
[1750822141070,6.615,2457.8,2457.4,4.06932341]
[1750822142689,6.615,2457.8,2457.2,0.8154]
[1750822142690,0.7673,2457.6,2457.2,4.06959009]
[1750822143285,0.7673,2457.6,2457.3,4.06947756]
[1750822144196,10.7673,2457.9,2457.5,4.06907352]
[1750822144373,6.615,2457.8,2457.5,4.06907352]
[1750822145090,6.615,2457.8,2457.6,4.06900654]
[1750822145665,6.615,2457.8,2457.5,4.06913631]
[1750822145864,6.615,2457.8,2457.6,4.06893487]
[1750822146200,10.0,2457.9,2457.7,4.06884485]
[1750822146369,16.615,2457.9,2457.8,4.0686793]
[1750822146693,16.615,2457.9,2457.7,4.06875432]
[1750822147375,16.615,2457.9,2457.8,4.0686793]
[1750822147883,10.0,2457.9,2457.7,4.06876859]
[1750822148491,10.0,2457.9,2457.8,4.0686793]
[1750822149119,10.0,2457.9,2457.7,4.06875728]
[1750822150297,10.0,2457.9,2457.8,4.0686793]
[1750822150596,6.616,2458.0,2457.9,4.06851377]
[1750822151099,6.616,2458.1,2457.8,4.85061489]
[1750822152569,6.616,2458.1,2457.9,4.06845014]
[1750822152870,6.616,2458.1,2457.9,4.06840106]
[1750822154480,6.616,2458.1,2457.8,4.85059325]
[1750822155095,6.616,2458.1,2457.9,4.06847686]
[1750822157000,6.616,2458.1,2457.8,4.85061314]
[1750822157205,6.616,2458.1,2457.8,4.06861314]
[1750822158013,0.7673,2458.2,2457.8,4.06861314]
[1750822158218,6.615,2458.0,2457.8,4.06861314]
[1750822159210,6.615,2458.0,2457.7,4.06875268]
[1750822160014,6.615,2458.0,2457.6,4.06894093]
[1750822160218,0.8119,2457.9,2457.6,4.06894093]
[1750822163024,0.8119,2457.9,2457.7,4.06883623]
[1750822164131,0.8119,2457.9,2457.6,4.06890277]
[1750822166425,0.8119,2457.9,2457.7,4.0688301]
[1750822167094,0.8119,2457.9,2457.6,4.06891588]
[1750822169303,0.8119,2457.9,2457.5,4.0690933]
[1750822169502,0.8119,2457.9,2457.6,4.06899936]
[1750822170725,0.8119,2457.9,2457.2,0.7993]
[1750822170929,0.8119,2457.9,2457.3,0.48691184]
[1750822171229,0.8119,2457.9,2457.6,4.06897746]
[1750822174129,0.8119,2457.9,2457.5,4.06910575]
[1750822174526,0.8119,2457.9,2457.6,4.06900436]
[1750822176522,0.8119,2457.9,2457.7,4.06882002]
[1750822176718,0.8119,2457.9,2457.6,4.06891792]
[1750822177236,0.8119,2457.9,2457.5,4.06909018]
[1750822177808,4.88042037,2457.9,2457.5,4.06909018]
[1750822178234,6.43678396,2457.9,2457.4,4.06926736]
[1750822179454,4.06876381,2457.8,2457.3,4.06939285]
[1750822179731,4.06876381,2457.8,2457.4,4.06930279]
[1750822179916,2.3204286,2457.8,2457.4,4.06930279]
[1750822180234,10.0,2457.9,2457.3,0.7801]
[1750822180442,10.0,2457.9,2457.7,4.06881387]
[1750822180625,10.0,2457.9,2457.6,4.06892515]
[1750822180825,10.0,2457.9,2457.7,4.06883526]
[1750822181020,0.8062,2457.8,2457.0,2.4861]
[1750822181220,0.8062,2457.8,2457.6,4.06892935]
[1750822182938,10.0,2457.9,2457.7,4.06875982]
[1750822183435,10.0,2457.9,2457.8,4.0686793]
[1750822183743,16.614,2457.9,2457.7,4.06875227]
[1750822183929,16.614,2457.9,2457.8,4.0686793]
[1750822184636,10.0,2457.9,2457.8,4.0686793]
[1750822184837,0.8066,2458.2,2457.9,4.06839981]
[1750822185041,10.0,2458.1,2457.8,0.7554]
[1750822185238,10.0,2458.1,2457.9,4.06851367]
[1750822185545,4.89290778,2458.6,2458.0,4.06833554]
[1750822185707,6.614,2458.5,2458.2,4.06799702]
[1750822185911,10.0,2458.4,2458.1,4.06812805]
[1750822186107,10.0,2458.4,2458.0,4.06818438]
[1750822186341,10.0,2458.4,2458.1,4.06810091]
[1750822186544,10.0,2458.4,2458.0,4.06828084]
[1750822186710,10.0,2458.4,2458.1,4.06816031]
[1750822187640,10.0,2458.4,2458.2,4.06799052]
[1750822188043,9.66725259,2458.7,2458.4,4.06760788]
[1750822188210,9.66725259,2458.7,2458.3,4.88018067]
[1750822188613,10.0,2458.6,2458.3,4.06778067]
[1750822189475,10.0,2458.6,2458.2,4.06794211]
[1750822189754,4.89637065,2458.5,2458.0,4.06830568]
[1750822189935,4.89637065,2458.5,2457.9,4.06844092]
[1750822189936,4.067771,2458.4,2457.9,4.06844092]
[1750822190312,4.89665615,2458.3,2457.8,4.06857902]
[1750822190531,4.06803309,2458.2,2457.7,5.77476721]
[1750822190734,10.68203309,2458.2,2457.7,5.77476721]
[1750822190939,4.88686787,2458.0,2457.5,4.0690872]
[1750822191138,4.88686787,2458.0,2457.4,4.06921112]
[1750822191139,4.06854492,2457.9,2457.4,4.06921112]
[1750822191345,10.68354492,2457.9,2457.4,4.06921112]
[1750822191748,6.615,2457.9,2457.5,4.0691539]
[1750822192925,10.68355694,2457.9,2457.4,4.06929118]
[1750822193449,10.68355694,2457.9,2457.3,5.77545341]
[1750822193450,6.615,2457.9,2457.5,4.06916997]
[1750822196773,10.68353995,2457.9,2457.4,4.06926]
[1750822197071,4.85353653,2457.8,2457.3,5.77545662]
[1750822197251,4.85353653,2457.8,2457.4,4.06933721]
[1750822197845,0.7848,2457.8,2457.4,4.06933721]
[1750822199379,0.7848,2457.8,2457.5,4.06915519]
[1750822199578,0.7848,2457.8,2457.4,4.06927067]
[1750822200975,4.85348065,2457.8,2457.4,4.06927067]
[1750822201283,0.7848,2457.8,2457.4,4.06927067]
[1750822202054,0.7848,2457.8,2457.3,5.77541872]
[1750822202055,4.85351673,2457.8,2457.3,5.77541872]
[1750822202568,4.85351673,2457.8,2457.3,4.06941872]
[1750822202769,4.85351673,2457.8,2457.2,4.06962456]
[1750822202770,0.7848,2457.8,2457.4,4.06931415]
[1750822202985,0.7848,2457.8,2457.5,4.06908653]
[1750822203188,0.7848,2457.8,2457.4,4.06925205]
[1750822204295,4.85348558,2457.8,2457.3,4.06947705]
[1750822205158,4.06887076,2457.7,2457.2,4.06956032]
[1750822205382,4.06887076,2457.7,2457.2,4.96400636]
[1750822205565,4.06888538,2457.7,2456.9,2.4808]
[1750822205764,4.06888538,2457.7,2457.0,4.06989838]
[1750822205765,0.8008,2457.4,2457.0,4.06989838]
[1750822206391,0.8008,2457.4,2456.9,0.7748]
[1750822206556,0.8008,2457.4,2457.3,4.06950718]
[1750822206905,7.3904,2457.6,2457.2,4.06961507]
[1750822207396,7.3904,2457.6,2457.3,4.06948107]
[1750822207552,7.3904,2457.6,2457.4,4.06923492]
[1750822209195,7.3904,2457.6,2457.3,4.06944612]
[1750822210082,0.7764,2457.6,2457.3,4.06944612]
[1750822211190,0.7764,2457.6,2457.4,4.06931958]
[1750822212265,10.808,2457.8,2457.4,4.06925958]
[1750822212591,6.614,2457.7,2457.4,4.06925958]
[1750822214069,6.614,2457.7,2457.3,4.06941676]
[1750822214664,6.614,2457.7,2457.4,4.06933449]
[1750822214870,6.614,2457.7,2457.5,4.06916697]
[1750822215054,6.614,2457.7,2457.4,4.06924472]
[1750822215256,10.808,2457.8,2457.4,4.06924472]
[1750822215461,17.422,2457.8,2457.4,4.06924472]
[1750822215693,21.49068696,2457.8,2457.4,4.06924472]
[1750822215990,21.49069159,2457.8,2457.3,4.06944304]
[1750822217161,21.49069159,2457.8,2457.4,4.06932826]
[1750822218091,21.49069159,2457.8,2457.3,4.06941258]
[1750822218462,21.49069159,2457.8,2457.4,4.06932772]
[1750822219098,21.49069159,2457.8,2457.2,4.8817399]
[1750822219099,21.49069159,2457.8,2457.3,4.06942573]
[1750822219991,17.422,2457.8,2457.3,4.96455816]
[1750822220190,17.422,2457.8,2457.4,4.06927578]
[1750822220501,21.49069602,2457.8,2457.3,4.96454718]
[1750822221486,4.06886064,2457.7,2457.2,4.88168001]
[1750822222006,4.06909662,2457.6,2457.2,0.8121]
[1750822222296,4.06909662,2457.6,2457.2,4.8817374]
[1750822222462,4.06892136,2457.7,2457.2,4.8817374]
[1750822222658,21.49076587,2457.8,2457.3,4.0694714]
[1750822222873,24.27750847,2457.8,2457.3,4.0694714]
[1750822223894,4.06889712,2457.7,2457.2,4.88167938]
[1750822224777,4.06889712,2457.7,2457.3,4.06949977]
[1750822225901,4.06889712,2457.7,2457.2,4.88171346]
[1750822226905,24.27750111,2457.8,2457.3,4.06948358]
[1750822228712,17.422,2457.8,2457.4,4.0692707]
[1750822230106,21.49068962,2457.8,2457.4,4.0692707]
[1750822230403,21.49068962,2457.8,2457.3,4.0694186]
[1750822230608,4.06886245,2457.7,2457.3,4.0694186]
[1750822231605,21.49077214,2457.8,2457.3,4.0694186]
[1750822233306,4.06884504,2457.7,2457.3,4.0694186]
[1750822233514,21.49076958,2457.8,2457.3,4.0694186]
[1750822233901,4.06892795,2457.7,2457.2,4.88164695]
[1750822234109,4.06892795,2457.7,2457.3,4.06948804]
[1750822234612,6.613,2457.6,2457.3,4.06948804]
[1750822241033,10.808,2457.8,2457.2,0.8121]
[1750822241308,0.7779,2458.4,2457.6,0.8193]
[1750822241490,4.84558913,2458.4,2457.9,4.06838031]
[1750822241691,4.84558913,2458.4,2458.0,4.06833685]
[1750822241890,7.3909,2458.4,2458.0,4.06833685]
[1750822242087,0.7779,2458.4,2457.8,0.8193]
[1750822242312,6.613,2458.4,2458.1,4.06806051]
[1750822242521,0.7779,2458.7,2458.1,4.06806051]
[1750822242522,0.7779,2458.7,2458.2,4.06791509]
[1750822242828,6.613,2458.7,2458.4,4.06768002]
[1750822243318,6.613,2458.7,2458.3,4.06777335]
[1750822243822,10.0,2458.6,2458.3,4.06777335]
[1750822244021,10.0,2458.6,2458.2,4.06795929]
[1750822244204,0.832,2458.5,2457.9,4.06842398]
[1750822244413,4.06774279,2458.4,2457.9,4.06842398]
[1750822245913,0.832,2458.5,2457.8,4.83786921]
[1750822245914,4.89963122,2458.5,2457.8,4.83786921]
[1750822246111,0.832,2458.5,2457.9,4.06851377]
[1750822246412,0.832,2458.5,2458.1,4.06814495]
[1750822246614,8.10015801,2458.5,2458.0,4.06825841]
[1750822247480,8.10015801,2458.5,2457.8,0.7692]
[1750822247822,6.612,2458.4,2458.0,4.06832733]
[1750822251121,10.67971088,2458.4,2457.9,4.06843132]
[1750822251308,10.67971088,2458.4,2458.0,4.06833684]
[1750822251486,6.612,2458.4,2458.0,4.06833684]
[1750822253009,10.67970405,2458.4,2458.0,4.06833684]
[1750822253210,10.67970405,2458.4,2457.7,1.13150974]
[1750822253211,4.06810304,2458.2,2457.7,4.06870712]
[1750822253437,0.8055,2458.2,2457.5,4.06917599]
[1750822253763,0.8055,2458.0,2457.5,4.06910811]
[1750822253958,6.02240568,2458.0,2457.5,4.06910811]
[1750822255137,4.06852241,2457.9,2457.5,4.06910811]
[1750822257310,4.06852241,2457.9,2457.4,4.06924807]
[1750822257510,0.7522,2457.8,2457.4,4.06924807]
[1750822258433,4.82090274,2457.8,2457.3,5.77445846]
[1750822259143,0.7522,2457.8,2457.4,4.06933807]
[1750822261142,0.7522,2457.8,2457.5,4.06904455]
[1750822261348,0.7522,2457.8,2457.5,4.06903811]
[1750822262842,0.7522,2457.8,2457.0,2.509]
[1750822263048,10.7522,2457.8,2457.4,4.06931256]
[1750822263524,14.8208873,2457.8,2457.4,4.06931256]
[1750822263842,17.37091605,2457.8,2457.4,4.06931256]